bitfinex/quotes_BTCUSD_20250320
["timestamp","ask_amount","ask_price","bid_price","bid_amount"]
[1742485538452,0.00041636,85232.0,85231.0,2.44863784]
[1742485538650,0.00041636,85232.0,85231.0,2.59779784]
[1742485539092,0.00041636,85232.0,85231.0,2.60952984]
[1742485539509,0.00041636,85232.0,85231.0,2.60352984]
[1742485540107,0.00041636,85232.0,85231.0,2.60752984]
[1742485540308,0.00041636,85232.0,85231.0,2.60152984]
[1742485540514,0.00041636,85232.0,85231.0,2.43663784]
[1742485540710,0.00041636,85232.0,85231.0,2.56795103]
[1742485540908,0.54680136,85232.0,85231.0,2.21972]
[1742485541123,0.54680136,85232.0,85231.0,2.448376]
[1742485541124,0.3003177,85232.0,85231.0,2.448376]
[1742485541322,0.3030758,85232.0,85231.0,2.448376]
[1742485541523,0.3003177,85232.0,85231.0,2.448376]
[1742485541772,0.3003177,85232.0,85231.0,2.58468303]
[1742485542014,0.3003177,85232.0,85231.0,2.57868303]
[1742485542223,0.0003177,85232.0,85231.0,2.58468303]
[1742485542876,0.0003177,85232.0,85231.0,2.56695103]
[1742485543068,0.0003177,85232.0,85231.0,2.56195103]
[1742485543279,0.0003177,85232.0,85231.0,2.41679103]
[1742485543478,0.0003177,85232.0,85231.0,2.57864303]
[1742485543792,0.0003177,85232.0,85231.0,2.57364303]
[1742485544020,0.0003177,85232.0,85231.0,2.56491103]
[1742485544667,0.00306875,85232.0,85231.0,2.56491103]
[1742485544877,0.0003177,85232.0,85231.0,2.56491103]
[1742485545251,0.0003177,85232.0,85231.0,2.58064303]
[1742485545709,0.0003177,85232.0,85231.0,2.59118388]
[1742485546103,0.0006561,85232.0,85231.0,2.59518388]
[1742485546308,0.0006561,85232.0,85231.0,2.59218388]
[1742485546511,0.0006561,85232.0,85231.0,2.58818388]
[1742485546716,0.0006561,85232.0,85231.0,2.59718388]
[1742485546916,0.0006561,85232.0,85231.0,2.59418388]
[1742485547347,0.0006561,85232.0,85231.0,2.59918388]
[1742485548190,0.0006561,85232.0,85231.0,2.41879103]
[1742485548370,0.0006561,85232.0,85231.0,2.57960303]
[1742485549029,0.0006561,85232.0,85231.0,2.41279103]
[1742485549236,0.0006561,85232.0,85231.0,2.56787103]
[1742485549439,0.0006561,85232.0,85231.0,2.57960303]
[1742485549615,0.0006561,85232.0,85231.0,2.58560303]
[1742485549831,0.0006561,85232.0,85231.0,2.57360303]
[1742485550278,0.0006561,85232.0,85231.0,2.58060303]
[1742485550682,0.0006561,85232.0,85231.0,2.33421503]
[1742485550892,0.0006561,85232.0,85231.0,2.56887103]
[1742485551731,0.3006561,85232.0,85231.0,2.06556]
[1742485551944,0.3006561,85232.0,85214.0,0.0119042]
[1742485551945,0.546435,85215.0,85214.0,0.0001692]
[1742485553595,0.673635,85215.0,85214.0,0.0001692]
[1742485554859,0.674635,85215.0,85214.0,0.0001692]
[1742485555069,0.347,85215.0,85214.0,0.0001692]
[1742485555275,0.358735,85215.0,85214.0,0.0001692]
[1742485555474,0.357735,85215.0,85214.0,0.0001692]
[1742485555683,0.359735,85215.0,85214.0,1.5001692]
[1742485555879,0.36172725,85215.0,85214.0,1.5001692]
[1742485556571,0.36372725,85215.0,85214.0,1.5001692]
[1742485556736,0.38213015,85215.0,85214.0,1.5001692]
[1742485557352,0.3801379,85215.0,85214.0,1.5001692]
[1742485557603,0.3801379,85215.0,85214.0,1.6492492]
[1742485557806,0.3781379,85215.0,85214.0,1.6492492]
[1742485558001,0.7867379,85215.0,85214.0,1.6492492]
[1742485558200,0.7887379,85215.0,85214.0,1.6492492]
[1742485558402,0.7310029,85215.0,85214.0,1.6492492]
[1742485558873,0.7126,85215.0,85214.0,1.6492492]
[1742485559252,0.002,85215.0,85214.0,1.76882423]
[1742485559460,0.002,85215.0,85214.0,1.78055923]
[1742485559641,0.4089388,85238.0,85230.0,0.234658]
[1742485559852,0.011732,85235.0,85231.0,0.14908]
[1742485560012,0.23465,85234.0,85231.0,0.14908]
[1742485560212,0.0123881,85232.0,85231.0,0.14908]
[1742485560640,0.5464,85227.0,85226.0,0.55852]
[1742485560855,0.5464,85227.0,85226.0,0.70756]
[1742485561057,0.3,85227.0,85226.0,0.70756]
[1742485561232,0.3,85227.0,85226.0,0.94223]
[1742485561435,0.3,85227.0,85226.0,0.70756]
[1742485562261,0.3,85227.0,85226.0,0.82713503]
[1742485562593,0.0006561,85232.0,85231.0,0.234656]
[1742485562721,0.0006561,85232.0,85231.0,0.35423103]
[1742485562929,0.0006561,85232.0,85231.0,0.35223103]
[1742485563381,0.0006561,85232.0,85231.0,1.5]
[1742485563382,0.2353091,85232.0,85231.0,1.5]
[1742485563577,0.0006561,85232.0,85231.0,1.883696]
[1742485563985,0.0006561,85232.0,85231.0,1.64904]
[1742485564304,0.5470411,85232.0,85231.0,1.501]
[1742485564506,0.5470411,85232.0,85193.0,0.1252]
[1742485564507,0.311734,85222.0,85221.0,0.14904]
[1742485564799,0.546415,85222.0,85221.0,0.14904]
[1742485565760,0.3,85222.0,85221.0,0.14904]
[1742485566000,0.546415,85222.0,85221.0,0.14904]
[1742485566225,0.546415,85222.0,85221.0,0.15004]
[1742485566562,0.234681,85222.0,85221.0,0.15004]
[1742485566761,0.234663,85229.0,85221.0,0.15104]
[1742485566969,0.26998438,85231.0,85221.0,0.15104]
[1742485566970,0.011732,85230.0,85221.0,0.15104]
[1742485567205,0.234681,85222.0,85221.0,0.15104]
[1742485567627,0.534681,85222.0,85221.0,0.15004]
[1742485567829,0.546415,85222.0,85221.0,0.001]
[1742485568028,0.546415,85222.0,85214.0,0.0001692]
[1742485568029,0.534758,85194.0,85190.0,0.55852]
[1742485568250,0.546495,85194.0,85190.0,0.55852]
[1742485568424,1.264505,85194.0,85193.0,0.02734829]
[1742485568841,0.546512,85188.0,85187.0,0.0001693]
[1742485569052,0.864097,85188.0,85187.0,0.0001693]
[1742485569395,0.546533,85181.0,85180.0,9.845e-05]
[1742485569614,2.07289703,85181.0,85180.0,0.00022333]
[1742485569817,1.51589603,85181.0,85180.0,0.00022333]
[1742485569993,0.546556,85173.0,85170.0,0.149]
[1742485570197,1.243954,85173.0,85172.0,0.0002942]
[1742485570413,0.955156,85173.0,85172.0,0.0002942]
[1742485570833,0.7086,85173.0,85172.0,0.0002942]
[1742485571045,0.72034,85173.0,85172.0,0.0002942]
[1742485571220,0.7086,85173.0,85172.0,0.0002942]
[1742485571398,0.7086,85173.0,85172.0,0.1493342]
[1742485571602,0.72034,85173.0,85172.0,0.1493342]
[1742485572414,0.72234,85173.0,85172.0,0.1493342]
[1742485572658,0.7106,85173.0,85172.0,0.1493342]
[1742485572777,0.0128214,85188.0,85172.0,0.50372723]
[1742485572981,0.4086,85193.0,85192.0,0.246501]
[1742485573180,0.25825238,85200.0,85196.0,0.23475]
[1742485573401,0.25825238,85200.0,85197.0,0.234748]
[1742485573609,0.25825238,85200.0,85198.0,0.234745]
[1742485573804,0.234743,85200.0,85193.0,0.23476]
[1742485574009,0.234747,85198.0,85194.0,0.234756]
[1742485574272,0.234747,85198.0,85192.0,0.14904]
[1742485574273,0.23471,85212.0,85192.0,0.14904]
[1742485574474,0.01307543,85198.0,85196.0,0.234751]
[1742485574739,0.01840735,85199.0,85197.0,0.234748]
[1742485574916,0.23475,85197.0,85192.0,0.14904]
[1742485575528,0.24651,85189.0,85188.0,0.55864]
[1742485575781,0.54651,85189.0,85188.0,0.70768]
[1742485576404,0.56491835,85189.0,85188.0,0.70768]
[1742485577186,0.31840835,85189.0,85188.0,0.70768]
[1742485577328,0.31840835,85189.0,85188.0,0.70968]
[1742485577525,0.01840835,85189.0,85188.0,0.84099303]
[1742485577729,0.66685238,85220.0,85201.0,0.246472]
[1742485577956,0.234696,85217.0,85213.0,0.234703]
[1742485578166,0.01289232,85220.0,85218.0,0.23469]
[1742485578366,0.00012483,85223.0,85222.0,0.234681]
[1742485578621,0.00012483,85223.0,85222.0,0.35425603]
[1742485579031,0.00012483,85223.0,85222.0,0.36599003]
[1742485579446,0.00012483,85223.0,85222.0,0.38053088]
[1742485579652,0.00012483,85223.0,85222.0,0.46303088]
[1742485579832,0.00012483,85223.0,85222.0,0.14904]
[1742485580933,0.00012483,85223.0,85222.0,0.15404]
[1742485581487,0.00012483,85223.0,85222.0,0.14904]
[1742485581917,0.00012483,85223.0,85222.0,0.15204]
[1742485582830,0.00274763,85223.0,85222.0,0.12257503]
[1742485582956,0.00274763,85223.0,85222.0,0.28330903]
[1742485582957,0.00012483,85223.0,85222.0,0.28330903]
[1742485583158,8.3e-07,85223.0,85222.0,0.29784988]
[1742485583362,2e-07,85239.0,85238.0,0.01454085]
[1742485583585,0.0003388,85266.0,85238.0,0.01454085]
[1742485583586,6e-07,85245.0,85244.0,0.26089185]
[1742485583785,6e-07,85245.0,85244.0,0.93906688]
[1742485583987,0.00041676,85245.0,85244.0,0.93906688]
[1742485584189,0.00041676,85245.0,85244.0,2.43906688]
[1742485585392,0.00041676,85245.0,85244.0,2.44406688]
[1742485586817,0.00041676,85245.0,85244.0,2.45006688]
[1742485588425,0.00041676,85245.0,85244.0,2.4741344]
[1742485590054,0.00041676,85245.0,85244.0,2.45959355]
[1742485590410,0.00041676,85245.0,85244.0,2.60847355]
[1742485591061,0.00041676,85245.0,85244.0,2.60247355]
[1742485591442,0.00041676,85245.0,85244.0,2.6230144]
[1742485591832,0.00041676,85245.0,85244.0,2.6180144]
[1742485592175,0.00041676,85245.0,85244.0,2.60847355]
[1742485592413,0.00041676,85245.0,85244.0,2.60347355]
[1742485592621,0.00041676,85245.0,85244.0,2.59747355]
[1742485592814,0.00041676,85245.0,85244.0,2.60247355]
[1742485592979,0.00041676,85245.0,85244.0,2.60847355]
[1742485593173,0.00041676,85245.0,85244.0,2.45459355]
[1742485593371,0.00041676,85245.0,85244.0,2.59747355]
[1742485593573,0.00041676,85245.0,85244.0,2.6120144]
[1742485593779,0.00041676,85245.0,85244.0,2.6180144]
[1742485594365,0.00041676,85245.0,85244.0,2.6120144]
[1742485594985,0.00041676,85245.0,85244.0,2.6170144]
[1742485595181,7.6e-07,85245.0,85244.0,2.6120144]
[1742485595383,7.6e-07,85245.0,85244.0,2.6927144]
[1742485595760,0.01316512,85266.0,85244.0,2.7037144]
[1742485595761,7.6e-07,85249.0,85244.0,2.7037144]
[1742485595967,0.0003388,85266.0,85244.0,2.7037144]
[1742485595968,3.6e-07,85255.0,85254.0,0.26086285]
[1742485596151,0.00012514,85255.0,85254.0,0.38043788]
[1742485596555,0.00012514,85255.0,85254.0,1.88043788]
[1742485597541,0.00012514,85255.0,85254.0,1.88643788]
[1742485597737,1.4e-07,85255.0,85254.0,1.88643788]
[1742485597943,1.4e-07,85255.0,85254.0,2.03523788]
[1742485598605,1.4e-07,85255.0,85254.0,2.04023788]
[1742485599028,1.4e-07,85255.0,85254.0,2.08953788]
[1742485600366,0.0002403,85266.0,85265.0,0.24629]
[1742485600547,0.0002403,85266.0,85265.0,0.36586503]
[1742485600950,0.0002403,85266.0,85265.0,0.35413703]
[1742485601261,0.0002403,85266.0,85265.0,1.85413703]
[1742485601467,0.0002403,85266.0,85265.0,2.00293703]
[1742485601702,0.0002403,85266.0,85265.0,2.01466503]
[1742485602263,0.0002403,85266.0,85265.0,2.00293703]
[1742485602902,0.0002403,85266.0,85265.0,2.56417703]
[1742485603103,0.0002403,85266.0,85265.0,2.57590503]
[1742485603235,0.0002403,85266.0,85265.0,2.57890503]
[1742485603641,0.0002403,85266.0,85265.0,2.57290503]
[1742485603962,0.0002403,85266.0,85265.0,2.57490503]
[1742485605483,0.0002403,85266.0,85265.0,2.57486503]
[1742485605697,0.0002403,85266.0,85265.0,2.57386503]
[1742485605907,0.0002403,85266.0,85265.0,2.42910503]
[1742485606124,0.0002403,85266.0,85265.0,2.44264588]
[1742485606351,0.0002403,85266.0,85265.0,2.59140588]
[1742485606558,0.0002403,85266.0,85265.0,2.59640588]
[1742485606807,0.0002403,85266.0,85265.0,2.59240588]
[1742485607071,0.0002403,85266.0,85265.0,2.58740588]
[1742485607345,0.0002403,85266.0,85265.0,2.42410503]
[1742485607607,0.0002403,85266.0,85265.0,2.58486503]
[1742485608044,0.0002403,85266.0,85265.0,2.45064588]
[1742485608242,0.0002403,85266.0,85265.0,2.59940588]
[1742485608954,0.0002403,85266.0,85265.0,2.59340588]
[1742485609163,0.0002403,85266.0,85265.0,2.59240588]
[1742485609842,0.0002403,85266.0,85265.0,2.59840588]
[1742485610443,0.0002403,85266.0,85265.0,2.44964588]
[1742485610668,0.0002403,85266.0,85265.0,2.42337703]
[1742485610898,0.0002403,85266.0,85265.0,2.57209703]
[1742485611119,0.0002403,85266.0,85265.0,2.58382503]
[1742485611358,0.0002403,85266.0,85265.0,2.57209703]
[1742485611817,0.0002403,85266.0,85265.0,2.58382503]
[1742485612339,0.0002403,85266.0,85265.0,2.57282503]
[1742485612594,0.0002403,85266.0,85265.0,2.57482503]
[1742485612830,0.0002403,85266.0,85265.0,2.57782503]
[1742485613053,0.0002403,85266.0,85265.0,2.57582503]
[1742485613310,0.0002403,85266.0,85265.0,2.57682503]
[1742485613797,0.0002403,85266.0,85265.0,2.58182503]
[1742485615152,0.0002403,85266.0,85265.0,2.63287251]
[1742485615354,0.0002403,85266.0,85265.0,2.62887251]
[1742485616132,0.0002403,85266.0,85265.0,2.61433166]
[1742485616742,0.0002403,85266.0,85265.0,2.61833166]
[1742485616920,0.0002403,85266.0,85265.0,2.61866986]
[1742485620845,0.0002403,85266.0,85265.0,2.45822186]
[1742485621044,0.2465283,85266.0,85265.0,2.2162582]
[1742485621246,0.0002403,85266.0,85265.0,2.4508202]
[1742485621852,0.0002403,85266.0,85265.0,2.57712323]
[1742485622021,0.0002403,85266.0,85265.0,2.4458202]
[1742485622217,0.0002403,85266.0,85265.0,2.4468202]
[1742485622783,0.0002403,85266.0,85265.0,2.4458202]
[1742485622980,0.0002403,85266.0,85265.0,2.4428202]
[1742485623414,0.0002403,85266.0,85265.0,2.49216324]
[1742485623612,0.0002403,85266.0,85265.0,2.61173827]
[1742485624086,0.0002403,85266.0,85265.0,2.62727912]
[1742485624232,3e-07,85266.0,85265.0,2.62727912]
[1742485624645,3e-07,85266.0,85265.0,2.62723912]
[1742485624803,3e-07,85266.0,85265.0,2.62523912]
[1742485625002,3e-07,85266.0,85265.0,2.62423912]
[1742485625217,0.0003388,85274.0,85273.0,0.246267]
[1742485625424,0.0003388,85274.0,85273.0,0.40245707]
[1742485625829,0.00888843,85282.0,85281.0,0.011725]
[1742485626041,0.10262798,85343.0,85330.0,0.011719]
[1742485626263,0.10262798,85343.0,85330.0,0.91211903]
[1742485626264,0.011717,85342.0,85330.0,0.91211903]
[1742485626483,0.02506863,85331.0,85330.0,0.7068]
[1742485626713,0.01334963,85331.0,85330.0,2.2068]
[1742485627624,0.01334963,85331.0,85330.0,2.32637503]
[1742485627832,0.01334963,85331.0,85330.0,2.33809403]
[1742485628343,7.4e-07,85331.0,85330.0,2.35263488]
[1742485628660,7.4e-07,85331.0,85330.0,2.38909884]
[1742485628828,7.4e-07,85331.0,85330.0,2.39780117]
[1742485629025,7.4e-07,85331.0,85330.0,2.39980117]
[1742485629786,7.4e-07,85331.0,85330.0,2.39780117]
[1742485629932,7.4e-07,85331.0,85330.0,2.40480117]
[1742485630141,7.4e-07,85331.0,85330.0,2.35963488]
[1742485630364,7.4e-07,85331.0,85330.0,2.35863488]
[1742485630569,7.4e-07,85331.0,85330.0,2.36463488]
[1742485630967,7.4e-07,85331.0,85330.0,2.20145403]
[1742485631176,7.4e-07,85331.0,85330.0,2.35859488]
[1742485631380,7.085e-05,85352.0,85351.0,0.011716]
[1742485631632,7.085e-05,85352.0,85351.0,0.51655996]
[1742485631961,0.00019569,85352.0,85351.0,0.51421703]
[1742485632495,0.00019569,85352.0,85351.0,0.51721703]
[1742485632895,0.00019569,85352.0,85351.0,0.53810447]
[1742485633117,0.00019569,85352.0,85351.0,0.55664532]
[1742485633118,6.9e-07,85352.0,85351.0,0.55664532]
[1742485633319,6.9e-07,85352.0,85351.0,2.05864532]
[1742485633693,6.9e-07,85352.0,85351.0,1.92394851]
[1742485633894,6.9e-07,85352.0,85351.0,2.08023551]
[1742485634286,6.9e-07,85352.0,85351.0,2.07350851]
[1742485634482,6.9e-07,85352.0,85351.0,1.89550447]
[1742485634685,6.9e-07,85352.0,85351.0,2.03230847]
[1742485634891,6.9e-07,85352.0,85351.0,2.04402447]
[1742485635097,6.9e-07,85352.0,85351.0,2.05256532]
[1742485635509,6.9e-07,85352.0,85351.0,2.05856532]
[1742485635939,6.9e-07,85352.0,85351.0,2.05256532]
[1742485636137,6.9e-07,85352.0,85351.0,2.05856532]
[1742485636781,6.9e-07,85352.0,85351.0,2.06456532]
[1742485637921,3.9e-07,85367.0,85366.0,0.245999]
[1742485638123,3.9e-07,85367.0,85366.0,0.52859488]
[1742485638565,3.9e-07,85369.0,85368.0,0.245992]
[1742485638779,3.9e-07,85369.0,85368.0,0.38010788]
[1742485639104,3.9e-07,85369.0,85368.0,0.39260226]
[1742485639305,3.9e-07,85369.0,85368.0,0.38010788]
[1742485639504,3.9e-07,85369.0,85368.0,0.38895659]
[1742485639881,3.9e-07,85369.0,85368.0,0.41840065]
[1742485640083,3.9e-07,85369.0,85368.0,0.39501109]
[1742485640198,3.9e-07,85369.0,85368.0,0.54349109]
[1742485640647,3.9e-07,85369.0,85368.0,0.54949109]
[1742485641291,3.9e-07,85369.0,85368.0,0.53177809]
[1742485641498,3.9e-07,85369.0,85368.0,0.52573809]
[1742485641752,3.9e-07,85369.0,85368.0,0.53573809]
[1742485642123,3.9e-07,85369.0,85368.0,0.52973809]
[1742485642727,3.9e-07,85369.0,85368.0,0.54145109]
[1742485642936,3.9e-07,85369.0,85368.0,0.55699194]
[1742485643348,3.9e-07,85369.0,85368.0,2.05999194]
[1742485643566,3.9e-07,85369.0,85368.0,2.04245109]
[1742485643765,3.9e-07,85369.0,85368.0,2.03073809]
[1742485644000,3.9e-07,85369.0,85368.0,2.04645109]
[1742485644201,3.9e-07,85369.0,85368.0,2.03473809]
[1742485644426,3.9e-07,85369.0,85368.0,2.02573809]
[1742485644830,3.9e-07,85369.0,85368.0,2.03073809]
[1742485645251,3.9e-07,85369.0,85368.0,2.03173809]
[1742485645466,3.9e-07,85369.0,85368.0,2.03669809]
[1742485646594,0.01303956,85369.0,85368.0,2.03669809]
[1742485646804,3.9e-07,85369.0,85368.0,1.53444406]
[1742485647007,0.01449564,85369.0,85368.0,1.68284406]
[1742485647234,0.02730573,85369.0,85368.0,1.511]
[1742485647447,0.73239973,85369.0,85368.0,1.511]
[1742485647592,0.546013,85361.0,85360.0,0.1484]
[1742485648012,0.546013,85361.0,85351.0,0.0003384]
[1742485648013,0.546039,85352.0,85351.0,0.0003384]
[1742485648595,0.311716,85351.0,85350.0,0.1449205]
[1742485649419,0.31837422,85351.0,85350.0,0.1449205]
[1742485649628,0.03009022,85351.0,85350.0,0.1449205]
[1742485649890,0.33009022,85351.0,85350.0,0.1449205]
[1742485650133,0.534329,85350.0,85349.0,0.55756]
[1742485650572,0.546045,85350.0,85349.0,0.70596]
[1742485650814,0.54846175,85350.0,85349.0,0.70596]
[1742485651074,0.30241675,85350.0,85349.0,0.70596]
[1742485651486,0.003,85351.0,85350.0,0.234329]
[1742485651699,0.003,85351.0,85350.0,0.233329]
[1742485652696,0.003,85351.0,85350.0,0.35290403]
[1742485653264,0.003,85351.0,85350.0,1.85290403]
[1742485653471,0.002,85351.0,85350.0,1.85290403]
[1742485653895,0.011716,85351.0,85350.0,1.6494]
[1742485654104,0.311716,85351.0,85350.0,1.6494]
[1742485654307,0.311716,85351.0,85350.0,1.6474]
[1742485654512,0.720316,85351.0,85350.0,1.499]
[1742485654715,0.83989103,85351.0,85350.0,1.501]
[1742485654973,1.20749803,85351.0,85350.0,1.501]
[1742485655178,1.17597003,85351.0,85350.0,1.5]
[1742485655321,1.15522003,85351.0,85350.0,1.499]
[1742485655528,0.802716,85351.0,85350.0,1.499]
[1742485655763,0.7106,85351.0,85350.0,1.881729]
[1742485656415,0.002,85351.0,85350.0,1.881729]
[1742485656618,0.4086,85368.0,85365.0,0.234286]
[1742485656790,0.4086,85368.0,85366.0,0.382685]
[1742485657512,3.9e-07,85369.0,85366.0,0.50226003]
[1742485657726,3.9e-07,85369.0,85368.0,0.242992]
[1742485658095,3.9e-07,85369.0,85368.0,0.35085403]
[1742485658629,3.9e-07,85369.0,85367.0,0.234282]
[1742485658630,3.9e-07,85369.0,85367.0,0.232282]
[1742485658827,3.9e-07,85369.0,85367.0,0.234282]
[1742485659030,3.9e-07,85369.0,85368.0,0.13128803]
[1742485659410,3.9e-07,85369.0,85368.0,0.13328803]
[1742485660482,3.9e-07,85369.0,85368.0,0.13863044]
[1742485660687,3.9e-07,85369.0,85368.0,0.13628803]
[1742485663285,3.9e-07,85369.0,85368.0,1.67272498]
[1742485663535,3.9e-07,85369.0,85368.0,1.63628803]
[1742485664288,0.00016959,85369.0,85368.0,1.63628803]
[1742485664672,0.00016959,85369.0,85368.0,1.67272269]
[1742485664872,0.011708,85407.0,85386.0,0.011711]
[1742485665082,0.00112465,85399.0,85394.0,0.234208]
[1742485665456,0.01354075,85399.0,85397.0,0.234199]
[1742485665650,0.01354075,85399.0,85398.0,1.5]
[1742485665879,0.00112465,85399.0,85398.0,1.5]
[1742485666424,0.01493312,85399.0,85398.0,1.63128403]
[1742485666629,0.234174,85407.0,85402.0,0.234186]
[1742485666939,0.3,85406.0,85403.0,0.14832]
[1742485667915,0.53417,85408.0,85404.0,0.23418]
[1742485668164,0.3,85406.0,85403.0,0.14832]
[1742485668339,0.011709,85400.0,85397.0,0.02393864]
[1742485668489,0.011709,85400.0,85389.0,0.234219]
[1742485668490,0.011709,85398.0,85389.0,0.234219]
[1742485668694,0.545905,85399.0,85395.0,0.02304707]
[1742485668898,0.31171,85396.0,85395.0,0.02304707]
[1742485669366,0.31171,85394.0,85387.0,0.55764465]
[1742485669574,0.311711,85388.0,85387.0,0.55764465]
[1742485669778,0.311711,85388.0,85387.0,0.70592465]
[1742485670193,0.3,85388.0,85387.0,0.70592465]
[1742485670598,0.234212,85393.0,85387.0,0.70592465]
[1742485670806,0.3,85392.0,85387.0,0.70592465]
[1742485670976,0.3,85390.0,85387.0,0.94015065]
[1742485671157,0.3,85390.0,85388.0,0.234224]
[1742485671357,0.3,85390.0,85389.0,0.14828]
[1742485672160,0.3,85390.0,85387.0,0.55764465]
[1742485672161,0.545935,85388.0,85387.0,0.55764465]
[1742485672415,0.545935,85388.0,85387.0,0.70592465]
[1742485673392,0.545935,85388.0,85387.0,2.20592465]
[1742485673599,0.545935,85388.0,85387.0,2.20692465]
[1742485674244,0.545935,85388.0,85387.0,2.20892465]
[1742485675212,0.954535,85388.0,85387.0,2.20892465]
[1742485675458,0.97290176,85388.0,85387.0,2.20926285]
[1742485675900,0.97290176,85388.0,85387.0,1.50346285]
[1742485676266,2.22965479,85388.0,85387.0,0.00346285]
[1742485676510,2.27575479,85388.0,85387.0,0.00346285]
[1742485676675,1.78304179,85388.0,85387.0,0.00346285]
[1742485677126,1.78304179,85388.0,85387.0,0.00146285]
[1742485677686,1.78304179,85388.0,85387.0,0.00046285]
[1742485678314,0.545958,85380.0,85379.0,0.55744]
[1742485678510,0.011715,85357.0,85352.0,0.12779205]
[1742485678708,0.3,85357.0,85355.0,0.234314]
[1742485679768,0.3,85361.0,85359.0,0.234303]
[1742485679906,0.01837176,85365.0,85363.0,0.234291]
[1742485680147,0.3,85363.0,85360.0,0.234299]
[1742485680332,0.3,85363.0,85361.0,0.234298]
[1742485680530,0.3,85361.0,85356.0,0.23431]
[1742485680850,0.3,85361.0,85355.0,0.003]
[1742485680851,0.011715,85359.0,85355.0,0.003]
[1742485681155,0.3,85356.0,85355.0,0.003]
[1742485681282,0.3,85356.0,85355.0,0.27957003]
[1742485681690,0.234277,85369.0,85364.0,0.234288]
[1742485681888,0.24599,85369.0,85364.0,0.234288]
[1742485682097,0.24599,85369.0,85365.0,0.234287]
[1742485682319,0.234281,85368.0,85365.0,0.234287]
[1742485682523,0.24599,85369.0,85365.0,0.234287]
[1742485682524,0.0123037,85369.0,85368.0,0.245992]
[1742485682724,0.245948,85384.0,85378.0,0.234252]
[1742485682930,0.00012454,85379.0,85378.0,0.55752]
[1742485683331,0.00012454,85379.0,85378.0,2.42305903]
[1742485683543,0.01266725,85379.0,85378.0,2.43489077]
[1742485683733,0.00012454,85379.0,85378.0,2.44660277]
[1742485684399,0.00112454,85379.0,85378.0,2.43489077]
[1742485684533,0.00112454,85379.0,85378.0,2.08106374]
[1742485684964,0.01280898,85379.0,85378.0,2.08106374]
[1742485685281,0.95468554,85379.0,85378.0,2.20576]
[1742485685519,0.96698518,85379.0,85378.0,2.20676]
[1742485685711,0.72102418,85379.0,85378.0,2.20676]
[1742485685912,0.73273618,85379.0,85378.0,2.20676]
[1742485686068,0.96698518,85379.0,85378.0,2.20676]
[1742485686269,0.95527318,85379.0,85378.0,2.20676]
[1742485686469,0.96698518,85379.0,85378.0,2.20676]
[1742485686678,0.96698518,85379.0,85378.0,2.20576]
[1742485687058,0.72102418,85379.0,85378.0,2.20576]
[1742485687268,0.96698518,85379.0,85378.0,2.20576]
[1742485687704,0.96698518,85379.0,85378.0,2.291772]
[1742485687705,0.01242418,85379.0,85378.0,2.291772]
[1742485687905,0.01242418,85379.0,85378.0,2.20576]
[1742485688351,0.54667318,85379.0,85378.0,2.20576]
[1742485688664,0.55838518,85379.0,85378.0,2.20576]
[1742485688791,0.96698518,85379.0,85378.0,2.20576]
[1742485690252,0.34267391,85379.0,85378.0,2.20576]
[1742485690454,0.56521091,85379.0,85378.0,2.20576]
[1742485690629,0.54684238,85379.0,85378.0,2.20576]
[1742485690840,0.31259338,85379.0,85378.0,2.440012]
[1742485691040,0.234234,85385.0,85379.0,0.234247]
[1742485691478,0.245943,85386.0,85379.0,0.11957503]
[1742485691479,0.234236,85384.0,85379.0,0.11957503]
[1742485691688,0.234241,85383.0,85378.0,0.70576]
[1742485691980,0.245961,85379.0,85378.0,0.70576]
[1742485692523,0.654561,85379.0,85378.0,0.70576]
[1742485692919,0.954561,85379.0,85378.0,0.70576]
[1742485693367,0.97292933,85379.0,85378.0,2.20576]
[1742485693570,0.97292933,85379.0,85378.0,2.05752]
[1742485693991,0.97292933,85379.0,85378.0,1.5]
[1742485694164,0.97292933,85379.0,85364.0,0.5578584]
[1742485694165,0.546002,85365.0,85364.0,0.5578584]
[1742485694538,0.546002,85365.0,85364.0,0.70618294]
[1742485694751,0.546002,85365.0,85364.0,2.20618294]
[1742485695982,0.547002,85365.0,85364.0,2.20618294]
[1742485696574,0.547002,85365.0,85364.0,2.05798294]
[1742485697107,0.301,85365.0,85364.0,2.05798294]
[1742485697644,0.301,85365.0,85364.0,2.29227294]
[1742485697836,0.3,85365.0,85364.0,2.05798294]
[1742485698058,0.011712,85377.0,85364.0,2.17755797]
[1742485698059,0.234255,85377.0,85364.0,2.17755797]
[1742485698291,0.234263,85374.0,85366.0,0.234285]
[1742485698509,0.234258,85376.0,85367.0,0.11957503]
[1742485698708,0.3,85379.0,85367.0,0.11957503]
[1742485698853,0.3,85377.0,85368.0,0.234278]
[1742485699058,0.3,85377.0,85369.0,0.11957503]
[1742485699454,0.01258939,85383.0,85379.0,0.234248]
[1742485699672,0.011711,85388.0,85380.0,0.26777503]
[1742485700281,0.3,85385.0,85380.0,0.26577503]
[1742485700727,0.3,85385.0,85380.0,0.26477503]
[1742485700942,0.3,85385.0,85380.0,0.49902103]
[1742485701184,0.00894046,85404.0,85385.0,0.011711]
[1742485701302,0.02064946,85404.0,85394.0,0.234208]
[1742485701506,0.00894046,85404.0,85403.0,0.234183]
[1742485701707,0.00894046,85404.0,85403.0,0.11957503]
[1742485701919,0.011709,85404.0,85395.0,0.70576]
[1742485702289,0.011709,85401.0,85395.0,0.82533503]
[1742485702474,0.234183,85403.0,85395.0,0.82533503]
[1742485702704,0.01285438,85401.0,85400.0,0.02292834]
[1742485702898,0.00012463,85401.0,85400.0,0.02292834]
[1742485703471,0.00012463,85401.0,85400.0,1.5]
[1742485703701,0.54591,85397.0,85396.0,0.14816]
[1742485704972,0.95451,85397.0,85396.0,0.14816]
[1742485705697,0.95451,85397.0,85396.0,0.14916]
[1742485706159,0.95451,85397.0,85396.0,0.15016]
[1742485706940,0.95451,85397.0,85396.0,0.14916]
[1742485709897,0.95451,85397.0,85395.0,0.55756]
[1742485709898,0.545913,85396.0,85395.0,0.40079]
[1742485710100,0.545961,85379.0,85378.0,0.0003382]
[1742485710430,0.545961,85379.0,85378.0,0.1484982]
[1742485711230,0.3,85392.0,85379.0,0.01454085]
[1742485711447,0.3,85386.0,85381.0,0.01454085]
[1742485711651,0.3,85386.0,85381.0,0.13411588]
[1742485712123,0.4086,85405.0,85384.0,0.01454085]
[1742485712335,0.234192,85400.0,85386.0,0.01454085]
[1742485712541,0.3,85397.0,85388.0,0.01454085]
[1742485712760,0.3,85397.0,85390.0,0.01454085]
[1742485712965,0.53423,85386.0,85385.0,0.02391412]